[Event "Titled Tuesday Blitz August 22 Late 2023"]
[White "Preotu, Razvan"]
[Black "Fernandez, Nelson Wilfredo"]
[WhiteFideId "2613280"]
[BlackFideId "8401594"]
[WhiteElo "2719"]
[BlackElo "2533"]
[Result "1-0"]
[Round "4"]
[TimeControl "180+1"]
[Date "2023.08.22"]
[WhiteClock "0:00:07"]
[BlackClock "0:00:00"]
[Board "66"]

1. e4 {[%clk 0:02:58]}  c6 {[%clk 0:02:58]} 2. Nc3 {[%clk 0:02:53]}  d5 {[%clk 0:02:57]} 3. Nf3 {[%clk 0:02:54]}  dxe4 {[%clk 0:02:57]} 4. Nxe4 {[%clk 0:02:55]}  Nf6 {[%clk 0:02:57]} 5. Qe2 {[%clk 0:02:55]}  Nxe4 {[%clk 0:02:57]} 6. Qxe4 {[%clk 0:02:56]}  Nd7 {[%clk 0:02:58]} 7. d4 {[%clk 0:02:55]}  Nf6 {[%clk 0:02:58]} 8. Qd3 {[%clk 0:02:54]}  Bg4 {[%clk 0:02:57]} 9. Ne5 {[%clk 0:02:27]}  Bh5 {[%clk 0:02:57]} 10. c3 {[%clk 0:01:34]}  Bg6 {[%clk 0:02:39]} 11. Nxg6 {[%clk 0:01:20]}  hxg6 {[%clk 0:02:40]} 12. Qf3 {[%clk 0:01:13]}  e6 {[%clk 0:02:40]} 13. Bc4 {[%clk 0:01:09]}  Be7 {[%clk 0:02:37]} 14. g3 {[%clk 0:01:02]}  Rc8 {[%clk 0:02:34]} 15. h4 {[%clk 0:01:00]}  a5 {[%clk 0:02:32]} 16. a4 {[%clk 0:00:59]}  Qd7 {[%clk 0:02:26]} 17. Bg5 {[%clk 0:00:56]}  Nd5 {[%clk 0:02:18]} 18. Bd2 {[%clk 0:00:56]}  Nf6 {[%clk 0:02:10]} 19. Kf1 {[%clk 0:00:55]}  Qc7 {[%clk 0:01:44]} 20. Kg2 {[%clk 0:00:53]}  Qd7 {[%clk 0:01:44]} 21. Rae1 {[%clk 0:00:50]}  b5 {[%clk 0:01:39]} 22. Bb3 {[%clk 0:00:37]}  c5 {[%clk 0:01:24]} 23. axb5 {[%clk 0:00:36]}  Qxb5 {[%clk 0:01:20]} 24. c4 {[%clk 0:00:37]}  Qb6 {[%clk 0:01:01]} 25. d5 {[%clk 0:00:36]}  exd5 {[%clk 0:00:56]} 26. Ba4+ {[%clk 0:00:36]}  Kf8 {[%clk 0:00:56]} 27. cxd5 {[%clk 0:00:36]}  Qxb2 {[%clk 0:00:36]} 28. Bf4 {[%clk 0:00:32]}  Qb6 {[%clk 0:00:22]} 29. d6 {[%clk 0:00:26]}  Bxd6 {[%clk 0:00:20]} 30. Rb1 {[%clk 0:00:26]}  Qc7 {[%clk 0:00:20]} 31. Rb7 {[%clk 0:00:26]}  Bxf4 {[%clk 0:00:16]} 32. Rxc7 {[%clk 0:00:26]}  Bxc7 {[%clk 0:00:17]} 33. Qc6 {[%clk 0:00:24]}  Kg8 {[%clk 0:00:16]} 34. Bb3 {[%clk 0:00:22]}  a4 {[%clk 0:00:11]} 35. Ba2 {[%clk 0:00:20]}  Kh7 {[%clk 0:00:09]} 36. Bxf7 {[%clk 0:00:21]}  Rhf8 {[%clk 0:00:08]} 37. Be6 {[%clk 0:00:20]}  Ra8 {[%clk 0:00:04]} 38. Qxc7 {[%clk 0:00:19]}  a3 {[%clk 0:00:05]} 39. h5 {[%clk 0:00:18]}  gxh5 {[%clk 0:00:05]} 40. Bf5+ {[%clk 0:00:18]}  Kh8 {[%clk 0:00:04]} 41. Qxc5 {[%clk 0:00:17]}  a2 {[%clk 0:00:04]} 42. Qd4 {[%clk 0:00:17]}  Rfd8 {[%clk 0:00:01]} 43. Qc3 {[%clk 0:00:14]}  Rd5 {[%clk 0:00:01]} 44. Be6 {[%clk 0:00:13]}  Rd6 {[%clk 0:00:01]} 45. Bb3 {[%clk 0:00:11]}  Rb6 {[%clk 0:00:01]} 46. Bc2 {[%clk 0:00:09]}  Rba6 {[%clk 0:00:01]} 47. Ra1 {[%clk 0:00:08]}  Ra3 {[%clk 0:00:00]} 48. Qe5 {[%clk 0:00:07]} 1-0


[Site "https://www.chess.com"]

[Event "Titled Tuesday Blitz August 22 Late 2023"]
[White "Grossboss19"]
[Black "Lamaze, Simon"]
[BlackFideId "36069264"]
[WhiteElo "2530"]
[BlackElo "2707"]
[Result "1/2-1/2"]
[Round "4"]
[TimeControl "180+1"]
[Date "2023.08.22"]
[WhiteClock "0:00:08"]
[BlackClock "0:00:04"]
[Board "69"]

1. d4 {[%clk 0:02:57]}  d5 {[%clk 0:02:58]} 2. c4 {[%clk 0:02:56]}  e6 {[%clk 0:02:54]} 3. Nc3 {[%clk 0:02:56]}  Nf6 {[%clk 0:02:53]} 4. cxd5 {[%clk 0:02:56]}  exd5 {[%clk 0:02:54]} 5. Bg5 {[%clk 0:02:56]}  c6 {[%clk 0:02:55]} 6. e3 {[%clk 0:02:56]}  Bf5 {[%clk 0:02:55]} 7. Qf3 {[%clk 0:02:55]}  Bg6 {[%clk 0:02:56]} 8. Bxf6 {[%clk 0:02:56]}  Qxf6 {[%clk 0:02:57]} 9. Qxf6 {[%clk 0:02:56]}  gxf6 {[%clk 0:02:58]} 10. g3 {[%clk 0:02:56]}  Nd7 {[%clk 0:02:55]} 11. Nge2 {[%clk 0:02:56]}  Bd6 {[%clk 0:02:55]} 12. Nf4 {[%clk 0:02:56]}  Bxf4 {[%clk 0:02:55]} 13. gxf4 {[%clk 0:02:56]}  Bf5 {[%clk 0:02:51]} 14. Rg1 {[%clk 0:02:54]}  Ke7 {[%clk 0:02:50]} 15. Be2 {[%clk 0:02:53]}  Nb6 {[%clk 0:02:44]} 16. Kd2 {[%clk 0:02:51]}  Nc8 {[%clk 0:02:40]} 17. Bd3 {[%clk 0:02:46]}  Nd6 {[%clk 0:02:40]} 18. Bxf5 {[%clk 0:02:46]}  Nxf5 {[%clk 0:02:41]} 19. Rg4 {[%clk 0:02:45]}  h5 {[%clk 0:02:40]} 20. Rg2 {[%clk 0:02:45]}  Nh4 {[%clk 0:02:27]} 21. Rg3 {[%clk 0:02:43]}  Nf5 {[%clk 0:02:27]} 22. Rg2 {[%clk 0:02:42]}  a5 {[%clk 0:02:27]} 23. a3 {[%clk 0:02:33]}  a4 {[%clk 0:02:27]} 24. Rag1 {[%clk 0:02:28]}  h4 {[%clk 0:02:22]} 25. h3 {[%clk 0:02:28]}  Nd6 {[%clk 0:02:13]} 26. Kc2 {[%clk 0:02:22]}  b6 {[%clk 0:02:03]} 27. Rg4 {[%clk 0:02:19]}  Nf5 {[%clk 0:02:02]} 28. Re1 {[%clk 0:02:13]}  Kd6 {[%clk 0:01:48]} 29. Rd1 {[%clk 0:02:03]}  Rag8 {[%clk 0:01:46]} 30. Rdg1 {[%clk 0:02:00]}  Ra8 {[%clk 0:01:45]} 31. Rd1 {[%clk 0:02:00]}  b5 {[%clk 0:01:43]} 32. Na2 {[%clk 0:01:55]}  Nh6 {[%clk 0:01:40]} 33. Rg2 {[%clk 0:01:55]}  Rag8 {[%clk 0:01:39]} 34. Rdg1 {[%clk 0:01:54]}  Rxg2 {[%clk 0:01:39]} 35. Rxg2 {[%clk 0:01:54]}  Nf5 {[%clk 0:01:37]} 36. Nb4 {[%clk 0:01:54]}  Rc8 {[%clk 0:01:37]} 37. Kd3 {[%clk 0:01:50]}  Ke6 {[%clk 0:01:24]} 38. Na6 {[%clk 0:01:45]}  Nd6 {[%clk 0:01:24]} 39. f3 {[%clk 0:01:43]}  Nc4 {[%clk 0:01:23]} 40. Nc5+ {[%clk 0:01:42]}  Ke7 {[%clk 0:01:23]} 41. e4 {[%clk 0:01:41]}  dxe4+ {[%clk 0:01:19]} 42. fxe4 {[%clk 0:01:41]}  f5 {[%clk 0:01:16]} 43. exf5 {[%clk 0:01:35]}  Kf6 {[%clk 0:01:13]} 44. Rg5 {[%clk 0:01:15]}  Nxb2+ {[%clk 0:01:13]} 45. Kc3 {[%clk 0:01:15]}  Nd1+ {[%clk 0:01:09]} 46. Kb4 {[%clk 0:01:14]}  Nf2 {[%clk 0:01:10]} 47. Rh5 {[%clk 0:01:03]}  Rd8 {[%clk 0:01:04]} 48. Kc3 {[%clk 0:00:58]}  Re8 {[%clk 0:01:03]} 49. Rxh4 {[%clk 0:00:53]}  Re3+ {[%clk 0:01:03]} 50. Kb4 {[%clk 0:00:53]}  Rxh3 {[%clk 0:00:57]} 51. Rxh3 {[%clk 0:00:39]}  Nxh3 {[%clk 0:00:58]} 52. d5 {[%clk 0:00:37]}  cxd5 {[%clk 0:00:50]} 53. Kxb5 {[%clk 0:00:37]}  Nxf4 {[%clk 0:00:47]} 54. Nxa4 {[%clk 0:00:37]}  Kxf5 {[%clk 0:00:44]} 55. Nb2 {[%clk 0:00:29]}  Ke4 {[%clk 0:00:35]} 56. a4 {[%clk 0:00:28]}  Ne6 {[%clk 0:00:36]} 57. a5 {[%clk 0:00:25]}  Nd4+ {[%clk 0:00:20]} 58. Kb6 {[%clk 0:00:21]}  Nf5 {[%clk 0:00:20]} 59. a6 {[%clk 0:00:20]}  Nd6 {[%clk 0:00:21]} 60. Kc6 {[%clk 0:00:17]}  Nc8 {[%clk 0:00:21]} 61. Kc7 {[%clk 0:00:17]}  Na7 {[%clk 0:00:21]} 62. Kb7 {[%clk 0:00:17]}  Nb5 {[%clk 0:00:21]} 63. Kc6 {[%clk 0:00:15]}  Na7+ {[%clk 0:00:21]} 64. Kb6 {[%clk 0:00:13]}  Nc8+ {[%clk 0:00:03]} 65. Kb7 {[%clk 0:00:12]}  Nd6+ {[%clk 0:00:03]} 66. Kc6 {[%clk 0:00:12]}  Nc8 {[%clk 0:00:03]} 67. Kc7 {[%clk 0:00:10]}  Na7 {[%clk 0:00:03]} 68. Kb7 {[%clk 0:00:09]}  Nb5 {[%clk 0:00:04]} 69. Kb6 {[%clk 0:00:09]}  Nd6 {[%clk 0:00:04]} 70. Kc7 {[%clk 0:00:08]}  Nb5+ {[%clk 0:00:04]} 71. Kb6 {[%clk 0:00:08]}  Nd6 {[%clk 0:00:04]} 1/2-1/2


[Site "https://www.chess.com"]

[Event "Titled Tuesday Blitz August 22 Late 2023"]
[White "Matinian, Nikita"]
[Black "Lawson, Eric"]
[WhiteFideId "24129100"]
[BlackFideId "2604116"]
[WhiteElo "2702"]
[BlackElo "2528"]
[Result "1-0"]
[Round "4"]
[TimeControl "180+1"]
[Date "2023.08.22"]
[WhiteClock "0:00:51"]
[BlackClock "0:00:02"]
[Board "70"]

1. e4 {[%clk 0:03:00]}  e5 {[%clk 0:02:58]} 2. Nf3 {[%clk 0:03:00]}  Nf6 {[%clk 0:02:58]} 3. Nxe5 {[%clk 0:03:00]}  d6 {[%clk 0:02:57]} 4. Nf3 {[%clk 0:03:00]}  Nxe4 {[%clk 0:02:58]} 5. Qe2 {[%clk 0:03:01]}  Qe7 {[%clk 0:02:57]} 6. d3 {[%clk 0:03:01]}  Nf6 {[%clk 0:02:57]} 7. Bg5 {[%clk 0:03:02]}  Qxe2+ {[%clk 0:02:53]} 8. Bxe2 {[%clk 0:03:03]}  Nbd7 {[%clk 0:02:53]} 9. Nc3 {[%clk 0:03:03]}  c6 {[%clk 0:02:43]} 10. O-O-O {[%clk 0:03:02]}  h6 {[%clk 0:02:40]} 11. Bd2 {[%clk 0:03:02]}  Be7 {[%clk 0:02:31]} 12. Rde1 {[%clk 0:03:02]}  O-O {[%clk 0:02:30]} 13. Bd1 {[%clk 0:03:01]}  Bd8 {[%clk 0:02:28]} 14. h3 {[%clk 0:02:59]}  a5 {[%clk 0:02:24]} 15. g4 {[%clk 0:02:59]}  a4 {[%clk 0:02:23]} 16. Nh4 {[%clk 0:02:59]}  d5 {[%clk 0:02:19]} 17. Nf5 {[%clk 0:02:59]}  Nc5 {[%clk 0:02:10]} 18. Ne7+ {[%clk 0:02:52]}  Kh7 {[%clk 0:01:51]} 19. Nxc8 {[%clk 0:02:32]}  Rxc8 {[%clk 0:01:51]} 20. f4 {[%clk 0:02:33]}  b5 {[%clk 0:01:43]} 21. g5 {[%clk 0:02:32]}  Nfd7 {[%clk 0:01:33]} 22. Bg4 {[%clk 0:02:20]}  b4 {[%clk 0:01:24]} 23. Nxa4 {[%clk 0:02:15]}  Nxa4 {[%clk 0:00:56]} 24. Bxd7 {[%clk 0:02:14]}  Rc7 {[%clk 0:00:56]} 25. Bf5+ {[%clk 0:02:15]}  g6 {[%clk 0:00:56]} 26. Bg4 {[%clk 0:02:04]}  c5 {[%clk 0:00:53]} 27. h4 {[%clk 0:02:02]}  h5 {[%clk 0:00:50]} 28. Bf3 {[%clk 0:02:02]}  d4 {[%clk 0:00:44]} 29. f5 {[%clk 0:01:58]}  Nb6 {[%clk 0:00:29]} 30. Rhf1 {[%clk 0:01:57]}  Be7 {[%clk 0:00:28]} 31. Be4 {[%clk 0:01:49]}  Bd6 {[%clk 0:00:25]} 32. fxg6+ {[%clk 0:01:40]}  fxg6 {[%clk 0:00:26]} 33. Rxf8 {[%clk 0:01:40]}  Bxf8 {[%clk 0:00:27]} 34. Rf1 {[%clk 0:01:40]}  Bg7 {[%clk 0:00:24]} 35. Bf4 {[%clk 0:01:27]}  Rf7 {[%clk 0:00:24]} 36. Rf3 {[%clk 0:01:27]}  Nd7 {[%clk 0:00:20]} 37. Bd6 {[%clk 0:01:23]}  Rxf3 {[%clk 0:00:20]} 38. Bxf3 {[%clk 0:01:24]}  Be5 {[%clk 0:00:19]} 39. Bxe5 {[%clk 0:01:17]}  Nxe5 {[%clk 0:00:19]} 40. Be2 {[%clk 0:01:18]}  Kg7 {[%clk 0:00:19]} 41. a4 {[%clk 0:01:18]}  bxa3 {[%clk 0:00:15]} 42. bxa3 {[%clk 0:01:18]}  Kf7 {[%clk 0:00:16]} 43. Kb2 {[%clk 0:01:12]}  Ke7 {[%clk 0:00:17]} 44. Kb3 {[%clk 0:01:12]}  Kd6 {[%clk 0:00:17]} 45. c3 {[%clk 0:01:03]}  Kc6 {[%clk 0:00:17]} 46. a4 {[%clk 0:01:02]}  Kb6 {[%clk 0:00:17]} 47. cxd4 {[%clk 0:01:00]}  cxd4 {[%clk 0:00:17]} 48. Kb4 {[%clk 0:01:00]}  Kc6 {[%clk 0:00:14]} 49. a5 {[%clk 0:00:59]}  Kc7 {[%clk 0:00:07]} 50. Kc5 {[%clk 0:00:57]}  Nc6 {[%clk 0:00:07]} 51. a6 {[%clk 0:00:56]}  Nb8 {[%clk 0:00:05]} 52. a7 {[%clk 0:00:56]}  Nd7+ {[%clk 0:00:05]} 53. Kxd4 {[%clk 0:00:57]}  Kb7 {[%clk 0:00:05]} 54. Kd5 {[%clk 0:00:52]}  Kxa7 {[%clk 0:00:06]} 55. Ke6 {[%clk 0:00:50]}  Nc5+ {[%clk 0:00:03]} 56. Kf6 {[%clk 0:00:51]}  Nb3 {[%clk 0:00:03]} 57. Kxg6 {[%clk 0:00:51]}  Nd4 {[%clk 0:00:02]} 58. Bxh5 {[%clk 0:00:51]} 1-0


[Site "https://www.chess.com"]

[Event "Titled Tuesday Blitz August 22 Late 2023"]
[White "Krishnan, Varun"]
[Black "Radovic, Luka"]
[WhiteFideId "5054508"]
[BlackFideId "911569"]
[WhiteElo "2698"]
[BlackElo "2525"]
[Result "1-0"]
[Round "4"]
[TimeControl "180+1"]
[Date "2023.08.22"]
[WhiteClock "0:00:21"]
[BlackClock "0:00:00"]
[Board "72"]

1. d4 {[%clk 0:03:00]}  Nf6 {[%clk 0:02:58]} 2. c4 {[%clk 0:03:01]}  e6 {[%clk 0:02:56]} 3. Nc3 {[%clk 0:03:01]}  d5 {[%clk 0:02:57]} 4. cxd5 {[%clk 0:03:00]}  exd5 {[%clk 0:02:56]} 5. Bg5 {[%clk 0:03:01]}  Be7 {[%clk 0:02:56]} 6. e3 {[%clk 0:03:01]}  Nbd7 {[%clk 0:02:56]} 7. Bd3 {[%clk 0:03:02]}  O-O {[%clk 0:02:57]} 8. Nge2 {[%clk 0:03:02]}  c6 {[%clk 0:02:57]} 9. O-O {[%clk 0:03:02]}  Re8 {[%clk 0:02:58]} 10. Qc2 {[%clk 0:03:03]}  Nf8 {[%clk 0:02:57]} 11. Rab1 {[%clk 0:03:01]}  g6 {[%clk 0:02:58]} 12. b4 {[%clk 0:02:58]}  Ne6 {[%clk 0:02:58]} 13. Bh4 {[%clk 0:02:57]}  Ng7 {[%clk 0:02:58]} 14. f3 {[%clk 0:02:47]}  Bf5 {[%clk 0:02:51]} 15. Bf2 {[%clk 0:02:36]}  Bxd3 {[%clk 0:02:49]} 16. Qxd3 {[%clk 0:02:35]}  Rc8 {[%clk 0:02:40]} 17. a4 {[%clk 0:02:34]}  a5 {[%clk 0:02:38]} 18. bxa5 {[%clk 0:02:32]}  c5 {[%clk 0:02:18]} 19. Rxb7 {[%clk 0:02:27]}  c4 {[%clk 0:02:17]} 20. Qc2 {[%clk 0:02:24]}  Qxa5 {[%clk 0:02:15]} 21. Rfb1 {[%clk 0:02:24]}  Nf5 {[%clk 0:02:14]} 22. R7b5 {[%clk 0:02:16]}  Qa8 {[%clk 0:02:11]} 23. Qa2 {[%clk 0:01:49]}  Bd6 {[%clk 0:02:08]} 24. a5 {[%clk 0:01:47]}  Nxe3 {[%clk 0:02:02]} 25. a6 {[%clk 0:01:45]}  Nf5 {[%clk 0:01:41]} 26. a7 {[%clk 0:01:43]}  Re7 {[%clk 0:01:34]} 27. Ra1 {[%clk 0:01:27]}  Rce8 {[%clk 0:01:17]} 28. Qa6 {[%clk 0:01:09]}  h5 {[%clk 0:01:08]} 29. h3 {[%clk 0:00:52]}  h4 {[%clk 0:01:07]} 30. Bxh4 {[%clk 0:00:47]}  Re6 {[%clk 0:00:48]} 31. Bxf6 {[%clk 0:00:38]}  Rxf6 {[%clk 0:00:42]} 32. Qb7 {[%clk 0:00:37]}  Rfe6 {[%clk 0:00:35]} 33. Rab1 {[%clk 0:00:32]}  Kg7 {[%clk 0:00:26]} 34. Rxd5 {[%clk 0:00:27]}  Bg3 {[%clk 0:00:09]} 35. Qxa8 {[%clk 0:00:21]}  Rxa8 {[%clk 0:00:00]} 36. Rxf5 {[%clk 0:00:21]} 1-0


[Site "https://www.chess.com"]

[Event "Titled Tuesday Blitz August 22 Late 2023"]
[White "Poltorak, Sebastian"]
[Black "Hjartarson, Johann"]
[WhiteFideId "1199498"]
[BlackFideId "2300044"]
[WhiteElo "2523"]
[BlackElo "2694"]
[Result "1-0"]
[Round "4"]
[TimeControl "180+1"]
[Date "2023.08.22"]
[WhiteClock "0:00:12"]
[BlackClock "0:00:19"]
[Board "74"]

1. e4 {[%clk 0:03:00]}  e5 {[%clk 0:02:59]} 2. Nc3 {[%clk 0:02:59]}  Nf6 {[%clk 0:02:58]} 3. g3 {[%clk 0:02:57]}  Bc5 {[%clk 0:02:55]} 4. Bg2 {[%clk 0:02:56]}  d6 {[%clk 0:02:55]} 5. h3 {[%clk 0:02:56]}  a6 {[%clk 0:02:53]} 6. Nge2 {[%clk 0:02:56]}  h5 {[%clk 0:02:52]} 7. d3 {[%clk 0:02:52]}  h4 {[%clk 0:02:49]} 8. g4 {[%clk 0:02:52]}  Nfd7 {[%clk 0:02:42]} 9. f4 {[%clk 0:02:47]}  Nc6 {[%clk 0:02:38]} 10. Nd5 {[%clk 0:02:42]}  Nd4 {[%clk 0:02:35]} 11. c3 {[%clk 0:02:31]}  Nxe2 {[%clk 0:02:33]} 12. Qxe2 {[%clk 0:02:31]}  c6 {[%clk 0:02:33]} 13. Nb4 {[%clk 0:02:24]}  Bxb4 {[%clk 0:02:23]} 14. cxb4 {[%clk 0:02:24]}  Qb6 {[%clk 0:02:18]} 15. a3 {[%clk 0:02:23]}  a5 {[%clk 0:02:15]} 16. Be3 {[%clk 0:02:23]}  Qb5 {[%clk 0:02:09]} 17. bxa5 {[%clk 0:02:13]}  Qxa5+ {[%clk 0:02:07]} 18. b4 {[%clk 0:02:12]}  Qb5 {[%clk 0:02:00]} 19. d4 {[%clk 0:02:10]}  Qxe2+ {[%clk 0:01:51]} 20. Kxe2 {[%clk 0:02:11]}  f6 {[%clk 0:01:44]} 21. Kd3 {[%clk 0:01:42]}  b6 {[%clk 0:01:36]} 22. Rhc1 {[%clk 0:01:39]}  exd4 {[%clk 0:01:33]} 23. Bxd4 {[%clk 0:01:34]}  c5 {[%clk 0:01:32]} 24. Bc3 {[%clk 0:01:30]}  Bb7 {[%clk 0:01:29]} 25. Ke3 {[%clk 0:01:27]}  Ke7 {[%clk 0:01:28]} 26. Rd1 {[%clk 0:01:25]}  Rhc8 {[%clk 0:01:24]} 27. Bf3 {[%clk 0:01:17]}  Bc6 {[%clk 0:01:14]} 28. Bb2 {[%clk 0:01:08]}  g5 {[%clk 0:01:11]} 29. Be2 {[%clk 0:00:46]}  b5 {[%clk 0:01:07]} 30. bxc5 {[%clk 0:00:32]}  dxc5 {[%clk 0:01:03]} 31. fxg5 {[%clk 0:00:24]}  fxg5 {[%clk 0:01:03]} 32. Rf1 {[%clk 0:00:22]}  c4 {[%clk 0:00:57]} 33. Rf5 {[%clk 0:00:20]}  c3 {[%clk 0:00:53]} 34. Bxc3 {[%clk 0:00:19]}  Ra4 {[%clk 0:00:43]} 35. Bb4+ {[%clk 0:00:19]}  Ke6 {[%clk 0:00:39]} 36. Rc1 {[%clk 0:00:16]}  Ne5 {[%clk 0:00:37]} 37. Rc5 {[%clk 0:00:14]}  Nd7 {[%clk 0:00:37]} 38. Rc1 {[%clk 0:00:13]}  Ne5 {[%clk 0:00:36]} 39. Rxg5 {[%clk 0:00:14]}  Nc4+ {[%clk 0:00:30]} 40. Bxc4+ {[%clk 0:00:14]}  bxc4 {[%clk 0:00:30]} 41. Rxc4 {[%clk 0:00:13]}  Bd7 {[%clk 0:00:29]} 42. Rxc8 {[%clk 0:00:12]}  Bxc8 {[%clk 0:00:29]} 43. Ra5 {[%clk 0:00:12]}  Rxa5 {[%clk 0:00:27]} 44. Bxa5 {[%clk 0:00:13]}  Ke5 {[%clk 0:00:26]} 45. Bc7+ {[%clk 0:00:11]}  Ke6 {[%clk 0:00:25]} 46. Bd8 {[%clk 0:00:12]}  Bd7 {[%clk 0:00:19]} 47. Bxh4 {[%clk 0:00:12]} 1-0


[Site "https://www.chess.com"]

[Event "Titled Tuesday Blitz August 22 Late 2023"]
[White "Vovk, Orest"]
[Black "Cuenca Jimenez, Jose Fernando"]
[WhiteFideId "14113490"]
[BlackFideId "2255570"]
[WhiteElo "2522"]
[BlackElo "2691"]
[Result "1-0"]
[Round "4"]
[TimeControl "180+1"]
[Date "2023.08.22"]
[WhiteClock "0:00:05"]
[BlackClock "0:00:00"]
[Board "75"]

1. g4 {[%clk 0:03:00]}  d5 {[%clk 0:02:46]} 2. h3 {[%clk 0:03:00]}  e5 {[%clk 0:02:46]} 3. Bg2 {[%clk 0:03:00]}  c6 {[%clk 0:02:45]} 4. d4 {[%clk 0:03:00]}  exd4 {[%clk 0:02:38]} 5. Qxd4 {[%clk 0:02:59]}  Nf6 {[%clk 0:02:38]} 6. Nf3 {[%clk 0:02:50]}  Be7 {[%clk 0:02:33]} 7. c4 {[%clk 0:02:49]}  dxc4 {[%clk 0:02:22]} 8. Qxd8+ {[%clk 0:02:48]}  Bxd8 {[%clk 0:02:19]} 9. Na3 {[%clk 0:02:41]}  c3 {[%clk 0:01:54]} 10. bxc3 {[%clk 0:02:36]}  O-O {[%clk 0:01:54]} 11. Nd4 {[%clk 0:02:24]}  Re8 {[%clk 0:01:44]} 12. e3 {[%clk 0:02:12]}  Ne4 {[%clk 0:01:38]} 13. Bb2 {[%clk 0:02:00]}  Na6 {[%clk 0:01:27]} 14. Nc4 {[%clk 0:01:49]}  Bc7 {[%clk 0:01:21]} 15. Nd2 {[%clk 0:01:43]}  Nac5 {[%clk 0:01:06]} 16. Bxe4 {[%clk 0:01:20]}  Nxe4 {[%clk 0:01:06]} 17. Nxe4 {[%clk 0:01:21]}  Rxe4 {[%clk 0:01:06]} 18. O-O-O {[%clk 0:01:10]}  Re8 {[%clk 0:01:02]} 19. c4 {[%clk 0:01:06]}  a5 {[%clk 0:00:54]} 20. Nf5 {[%clk 0:01:03]}  Bxf5 {[%clk 0:00:43]} 21. gxf5 {[%clk 0:01:03]}  Be5 {[%clk 0:00:44]} 22. Rd7 {[%clk 0:00:56]}  b5 {[%clk 0:00:42]} 23. cxb5 {[%clk 0:00:49]}  cxb5 {[%clk 0:00:40]} 24. Rd5 {[%clk 0:00:49]}  Bxb2+ {[%clk 0:00:30]} 25. Kxb2 {[%clk 0:00:49]}  b4 {[%clk 0:00:31]} 26. Rc1 {[%clk 0:00:42]}  Ra7 {[%clk 0:00:29]} 27. Rcc5 {[%clk 0:00:38]}  Rea8 {[%clk 0:00:24]} 28. Kb3 {[%clk 0:00:34]}  h6 {[%clk 0:00:22]} 29. Ka4 {[%clk 0:00:33]}  Re7 {[%clk 0:00:17]} 30. Rxa5 {[%clk 0:00:31]}  Rc8 {[%clk 0:00:16]} 31. Kxb4 {[%clk 0:00:25]}  Kh7 {[%clk 0:00:13]} 32. Rac5 {[%clk 0:00:21]}  Rb8+ {[%clk 0:00:10]} 33. Rb5 {[%clk 0:00:21]}  Re4+ {[%clk 0:00:10]} 34. Rd4 {[%clk 0:00:18]}  Rxb5+ {[%clk 0:00:09]} 35. Kxb5 {[%clk 0:00:18]}  Re5+ {[%clk 0:00:10]} 36. Kb6 {[%clk 0:00:18]}  Rxf5 {[%clk 0:00:11]} 37. Rf4 {[%clk 0:00:15]}  Rd5 {[%clk 0:00:07]} 38. a4 {[%clk 0:00:13]}  Kg6 {[%clk 0:00:06]} 39. a5 {[%clk 0:00:13]}  Rd6+ {[%clk 0:00:07]} 40. Kb7 {[%clk 0:00:10]}  Rd2 {[%clk 0:00:05]} 41. Ra4 {[%clk 0:00:06]}  Rxf2 {[%clk 0:00:04]} 42. a6 {[%clk 0:00:06]}  Rb2+ {[%clk 0:00:05]} 43. Kc6 {[%clk 0:00:06]}  Rc2+ {[%clk 0:00:05]} 44. Kd7 {[%clk 0:00:06]}  Rd2+ {[%clk 0:00:05]} 45. Ke7 {[%clk 0:00:06]}  Rc2 {[%clk 0:00:04]} 46. a7 {[%clk 0:00:06]}  Rc8 {[%clk 0:00:04]} 47. a8=Q {[%clk 0:00:06]}  Rxa8 {[%clk 0:00:05]} 48. Rxa8 {[%clk 0:00:06]}  f6 {[%clk 0:00:06]} 49. Rg8 {[%clk 0:00:05]}  Kf5 {[%clk 0:00:05]} 50. Rxg7 {[%clk 0:00:05]}  Ke4 {[%clk 0:00:06]} 51. Kxf6 {[%clk 0:00:05]}  Kxe3 {[%clk 0:00:07]} 52. h4 {[%clk 0:00:05]}  Kf4 {[%clk 0:00:08]} 53. h5 {[%clk 0:00:05]}  Kf3 {[%clk 0:00:00]} 54. Rg6 {[%clk 0:00:05]} 1-0


[Site "https://www.chess.com"]

[Event "Titled Tuesday Blitz August 22 Late 2023"]
[White "Glavina, Pablo"]
[Black "Olsen, Filip Boe"]
[WhiteFideId "100234"]
[BlackFideId "1440640"]
[WhiteElo "2519"]
[BlackElo "2687"]
[Result "1/2-1/2"]
[Round "4"]
[TimeControl "180+1"]
[Date "2023.08.22"]
[WhiteClock "0:00:02"]
[BlackClock "0:00:19"]
[Board "76"]

1. c4 {[%clk 0:03:00]}  e6 {[%clk 0:02:58]} 2. g3 {[%clk 0:03:00]}  d5 {[%clk 0:02:58]} 3. Bg2 {[%clk 0:03:00]}  dxc4 {[%clk 0:02:58]} 4. Qa4+ {[%clk 0:03:00]}  Bd7 {[%clk 0:02:54]} 5. Qxc4 {[%clk 0:02:57]}  Bc6 {[%clk 0:02:54]} 6. Nf3 {[%clk 0:02:57]}  Nf6 {[%clk 0:02:51]} 7. O-O {[%clk 0:02:56]}  Be7 {[%clk 0:02:50]} 8. Nc3 {[%clk 0:02:56]}  O-O {[%clk 0:02:50]} 9. d4 {[%clk 0:02:51]}  a6 {[%clk 0:02:50]} 10. Bf4 {[%clk 0:02:44]}  Nbd7 {[%clk 0:02:44]} 11. Rfd1 {[%clk 0:02:39]}  Nb6 {[%clk 0:02:40]} 12. Qd3 {[%clk 0:02:38]}  Nbd5 {[%clk 0:02:40]} 13. Ne5 {[%clk 0:02:35]}  Nxf4 {[%clk 0:02:31]} 14. gxf4 {[%clk 0:02:36]}  Bxg2 {[%clk 0:02:31]} 15. Kxg2 {[%clk 0:02:36]}  c5 {[%clk 0:02:27]} 16. dxc5 {[%clk 0:02:17]}  Bxc5 {[%clk 0:02:18]} 17. e3 {[%clk 0:02:10]}  Qe7 {[%clk 0:02:05]} 18. Qe2 {[%clk 0:02:00]}  Rfd8 {[%clk 0:01:50]} 19. Qf3 {[%clk 0:01:59]}  Bb4 {[%clk 0:01:43]} 20. Ne2 {[%clk 0:01:55]}  Bd6 {[%clk 0:01:25]} 21. Nc4 {[%clk 0:01:49]}  Nd5 {[%clk 0:01:21]} 22. Rac1 {[%clk 0:01:29]}  Rac8 {[%clk 0:01:15]} 23. Nd4 {[%clk 0:00:56]}  Qf6 {[%clk 0:00:53]} 24. Nxd6 {[%clk 0:00:48]}  Rxc1 {[%clk 0:00:54]} 25. Rxc1 {[%clk 0:00:46]}  Rxd6 {[%clk 0:00:54]} 26. e4 {[%clk 0:00:36]}  Nxf4+ {[%clk 0:00:52]} 27. Qxf4 {[%clk 0:00:34]}  Qxd4 {[%clk 0:00:45]} 28. Rc8+ {[%clk 0:00:18]}  Rd8 {[%clk 0:00:44]} 29. Qb8 {[%clk 0:00:03]}  Qxe4+ {[%clk 0:00:42]} 30. Kg1 {[%clk 0:00:01]}  Qe1+ {[%clk 0:00:39]} 31. Kg2 {[%clk 0:00:02]}  Qe4+ {[%clk 0:00:40]} 32. Kg1 {[%clk 0:00:02]}  Qg6+ {[%clk 0:00:37]} 33. Kf1 {[%clk 0:00:02]}  Qb1+ {[%clk 0:00:37]} 34. Kg2 {[%clk 0:00:03]}  Qg6+ {[%clk 0:00:36]} 35. Kf1 {[%clk 0:00:03]}  Qd3+ {[%clk 0:00:37]} 36. Kg2 {[%clk 0:00:03]}  Qd5+ {[%clk 0:00:37]} 37. Kg3 {[%clk 0:00:01]}  Qg5+ {[%clk 0:00:27]} 38. Kf3 {[%clk 0:00:02]}  Qd5+ {[%clk 0:00:27]} 39. Kg3 {[%clk 0:00:02]}  Qd3+ {[%clk 0:00:25]} 40. f3 {[%clk 0:00:02]}  Qg6+ {[%clk 0:00:25]} 41. Kf4 {[%clk 0:00:01]}  Qf5+ {[%clk 0:00:24]} 42. Kg3 {[%clk 0:00:01]}  Qg6+ {[%clk 0:00:23]} 43. Kh3 {[%clk 0:00:01]}  Qf5+ {[%clk 0:00:22]} 44. Kg3 {[%clk 0:00:02]}  Qg5+ {[%clk 0:00:20]} 45. Kh3 {[%clk 0:00:02]}  Qh6+ {[%clk 0:00:19]} 46. Kg3 {[%clk 0:00:02]}  Qg6+ {[%clk 0:00:19]} 1/2-1/2


[Site "https://www.chess.com"]